Cogmind - Beta 16.1 @@@ ROGUE MODE // 2026.03.14 @ 15:30:29 Player: delto Result: Self-destructed Performance ------------- Evolutions (3) 1500 Regions Visited (10) 2000 Robots Destroyed (107) 535 Value Destroyed (3187) 3187 Prototype IDs (28) 560 Alien Tech Used (0) 0 Bonus (719) 719 TOTAL SCORE: 8501 Bonus ------- High Alert Combat Kills 169 Follower Combat Kills 250 Aligned with FarCom 300 Cogmind --------- Core Integrity 554/700 Matter 9/300 Energy 150/150 System Corruption 1% Temperature Cool (0) Movement Rolling (100) Location -7/Factory Parts ------- > --- POWER (1) -------- Micro Nuclear Core > --- PROPULSION (3) --- Armored Huge Wheel > --- UTILITY (5) ------ Targeting Computer Targeting Computer Target Analyzer Target Analyzer Reflective Plating > --- WEAPON (4) ------- (None) > --- INVENTORY (5) ---- High-capacity Matter Pod (25) Compact Matter Pod (0) Compact Matter Pod (0) Compact Matter Pod (0) Shield Generator Peak State ------------ > --- POWER ------------ Micro Nuclear Core > --- PROPULSION ------- Medium Treads Armored Huge Wheel > --- UTILITY ---------- Humpback Experimental Sensor Array Improved Medium Armor Plating System Restoration Module > --- WEAPON ----------- XL Autogun Array > --- INVENTORY -------- Micro Nuclear Core Micro Nuclear Core Micro Nuclear Core Improved Treads Advanced Treads Compact Wheel Armored Huge Wheel Improved Heat Sink Compact Battery Compact Battery High-capacity Matter Pod High-capacity Matter Pod Improved Terrain Scanner Target Analyzer Target Analyzer Kinecellerator Transmission Jammer Improved Propulsion Shielding Improved Propulsion Shielding Improved Medium Armor Plating Improved Medium Armor Plating Improved Medium Armor Plating Improved Medium Armor Plating Reactive Plating Reactive Plating Reactive Plating Reactive Plating Reflective Plating Reflective Plating Reflective Plating Reflective Plating Shock Absorption System Recalibrator Remote Datajack [Rating: 82] Favorites ----------- Power Light Nuclear Core Engine Ion Engine Power Core Light Nuclear Core Propulsion Light Treads Treads Light Treads Wheel Armored Huge Wheel Utility Humpback Device Experimental Sensor Array Storage Humpback Processor Signal Interpreter Hackware Hacking Suite Protection Improved Propulsion Shielding Weapon Heavy EM Pulse Gun Energy Gun Heavy EM Pulse Gun Ballistic Gun XL Autogun Array Launcher Grenade Launcher Slashing Weapon Falx Build | -11 -10 -10 -9 -9 -9 -8 -8 -7 -7 -7 ------- Run | Yrd Mat Min Mat Min Exi Min Mat Fac Was Fac Slots Evolved 6 | . . . 2 . . . 2 2 . . Power . | . . . . . . . . . . . Propulsion 1 | . . . . . . . . 1 . . Utility 3 | . . . 2 . . . . 1 . . Weapon 2 | . . . . . . . 2 . . . Parts Attached 101 | 7 3 2 18 3 1 2 24 26 10 5 Power 12 | 1 1 . 1 . . . 6 1 2 . Engine 3 | 1 . . . . . . 2 . . . Core 9 | . 1 . 1 . . . 4 1 2 . Reactor . | . . . . . . . . . . . Propulsion 13 | 2 . . 2 . . . 2 2 5 . Treads 10 | 1 . . 2 . . . 2 1 4 . Leg . | . . . . . . . . . . . Wheel 3 | 1 . . . . . . . 1 1 . Hover . | . . . . . . . . . . . Flight . | . . . . . . . . . . . Utility 63 | 3 1 2 10 3 1 2 15 19 2 5 Device 18 | 2 . 1 3 . . . 2 8 2 . Storage 4 | 1 1 1 . . 1 . . . . . Processor 17 | . . . 2 1 . . 3 6 . 5 Hackware 3 | . . . . . . . 2 1 . . Protection 21 | . . . 5 2 . 2 8 4 . . Artifact . | . . . . . . . . . . . Weapon 13 | 1 1 . 5 . . . 1 4 1 . Energy Gun 4 | . . . 4 . . . . . . . Energy Cannon . | . . . . . . . . . . . Ballistic Gun 7 | 1 . . 1 . . . 1 4 . . Ballistic Cannon . | . . . . . . . . . . . Launcher 1 | . 1 . . . . . . . . . Special Weapon . | . . . . . . . . . . . Impact Weapon . | . . . . . . . . . . . Slashing Weapon 1 | . . . . . . . . . 1 . Piercing Weapon . | . . . . . . . . . . . Special Melee Weapon . | . . . . . . . . . . . Unidentified Prototypes 3 | . . 1 1 . . . . 1 . . Parts Lost 26 | . . . 5 . . 6 3 . 10 2 Power 6 | . . . 1 . . 2 2 . 1 . Propulsion 2 | . . . 1 . . . . . 1 . Utility 12 | . . . 1 . . 3 1 . 6 1 Weapon 6 | . . . 2 . . 1 . . 2 1 Highest Loss Streak 10 | . . . 2 . . 5 1 . 10 2 To Critical Strikes . | . . . . . . . . . . . Average Backups 27 | 2 11 14 20 24 23 23 33 33 18 4 Power 1 | . 1 2 1 1 1 . 2 2 1 . Propulsion 1 | 2 5 5 2 . . . 1 3 3 . Utility 21 | . 3 5 15 20 20 21 26 26 13 4 Weapon 1 | . 1 2 1 2 1 1 3 . . . Tool/Special . | . . . . . . . . . . . Unused Backups 71 | 3 4 3 12 . 5 1 15 15 9 4 Power 10 | 1 . . 3 . . 1 3 1 1 . Propulsion 13 | 1 . 3 4 . 1 . 2 2 . . Utility 31 | . 2 . 1 . 2 . 7 8 7 4 Weapon 16 | 1 2 . 4 . 2 . 3 4 . . Tool/Special 1 | . . . . . . . . . 1 . Average Slot Usage (%) 77 | . 99 100 98 100 97 78 62 65 51 56 Engine 1 | . 6 . 4 . . . 1 . . . Core 7 | . 7 14 6 11 11 1 6 7 7 7 Treads 16 | . 14 14 17 22 22 22 18 11 3 . Wheel 2 | . 14 14 4 . . . . 4 6 7 Device 9 | . 14 14 7 13 4 1 5 13 8 . Storage 9 | . 14 14 11 11 11 11 9 7 3 . Processor 3 | . . . 7 6 . . . 5 . 25 Protection 10 | . . . 17 12 25 19 10 2 5 7 Energy Gun 5 | . . . 9 15 22 21 . . . . Ballistic Gun 6 | . 14 14 4 . . . 8 9 13 . Launcher 2 | . 13 14 8 6 . . . . . . Peak Build Rating 82 | 8 12 20 32 28 31 31 69 82 69 29 Average Rating 47 | 5 10 17 20 26 24 21 60 74 39 26 On Entrance 26 | . 8 12 20 20 23 31 21 66 69 20 Avg Prop Armor Cover (%) 8 | 17 8 12 10 . . . . 5 7 . Naked Turns 1 | . . . . . . . . . 1 . Heaviest Build 241 | 12 30 90 104 104 215 222 241 233 221 14 Greatest Support 73 | 20 20 20 40 40 40 40 45 73 28 28 Greatest Overweight (x) 8 | . 1 5 6 2 5 5 5 8 7 . Average Overweight (x) 3 | . . 1 3 2 2 5 4 6 1 . Largest Inventory Capacity 35 | 8 15 25 25 25 35 35 35 35 35 5 Average Capacity 30 | 7 13 17 25 25 27 35 35 35 20 5 Most Carried 35 | 8 15 17 25 25 31 30 35 35 35 5 Average Carried 28 | 2 11 15 20 24 24 27 34 34 18 4 Final Capacity 35 | 8 15 25 25 25 35 35 35 35 5 5 Final Carried 35 | 7 15 17 20 25 30 28 35 34 1 5 Class Distribution -------------------- 38% | Hauler-Skirmisher 31% | Mutant 17% | Hauler-Tank 6% | Scavenger-Skirmisher 6% | Hauler-Mutant Dominant Class ---------------- Mutant | -10/Materials Mutant | -10/Mines Mutant | -9/Materials Scavenger-Skirmisher | -9/Mines Mutant | -9/Exiles Hauler-Mutant | -8/Mines Hauler-Tank | -8/Materials Hauler-Skirmisher | -7/Factory Mutant | -7/Waste Mutant | -7/Factory Resources | -11 -10 -10 -9 -9 -9 -8 -8 -7 -7 -7 ----------- Run | Yrd Mat Min Mat Min Exi Min Mat Fac Was Fac Matter Collected 3671 | 293 55 34 509 66 90 95 1395 918 216 . Remotely 416 | . . . . . . . . 200 216 . Salvage Created 3926 | 127 13 . 999 . . 117 1693 761 216 . Parts 229 | 9 1 . 66 . . 8 83 56 6 . Haulers Intercepted 1 | . . . . . . . 1 . . . Recyclers Shooed 6 | 1 . . 3 . . 1 1 . . . Parts Field Recycled . | . . . . . . . . . . . Retrieved Matter . | . . . . . . . . . . . Parts Self-Destructed . | . . . . . . . . . . . Prevented . | . . . . . . . . . . . Parts Restored . | . . . . . . . . . . . Kills | -11 -10 -10 -9 -9 -9 -8 -8 -7 -7 -7 ------- Run | Yrd Mat Min Mat Min Exi Min Mat Fac Was Fac Combat Hostiles Destroyed 72 | . 1 . 30 . . 4 23 13 1 . Melee 1 | . . . . . . 1 . . . . Guns 48 | . 1 . 10 . . 1 23 12 1 . AOE 22 | . . . 19 . . 2 . 1 . . Classes Destroyed 17 | 2 1 . 7 . . 2 3 1 1 . Worker 9 | . . . . . . . 6 3 . . Builder 4 | . . . 1 . . . 2 1 . . Tunneler 3 | 2 . . . . . 1 . . . . Hauler 1 | . . . . . . . 1 . . . Recycler 7 | 1 . . 1 . . . 5 . . . Mechanic 2 | . . . 1 . . . 1 . . . Operator 1 | . . . . . . . 1 . . . Watcher 8 | . . . 2 . . . 4 2 . . Swarmer 16 | . 1 . 10 . . . 5 . . . Grunt 35 | . . . 12 . . 2 14 7 . . Brawler 2 | . . . 2 . . . . . . . Duelist 1 | . . . . . . 1 . . . . Sentry 10 | . . . 6 . . . 3 1 . . Hunter 2 | . . . . . . 1 1 . . . Programmer 5 | . . . . . . . . 5 . . Compactor 1 | . . . . . . . . . 1 . Botcube 1 | . . . 1 . . . . . . . Best Kill Streak 11 | 1 1 . 11 . . 3 5 9 1 . Combat Bots Only 11 | . 1 . 11 . . 3 4 6 1 . Max Kills in Single Turn 4 | 1 1 . 4 . . 1 3 2 1 . Gunslinging . | . . . . . . . . . . . Exploded 3 | . . . 3 . . 1 . 1 . . Melee 1 | . . . . . . 1 . . . . Uniques/NPCs Destroyed . | . . . . . . . . . . . Combat | -11 -10 -10 -9 -9 -9 -8 -8 -7 -7 -7 -------- Run | Yrd Mat Min Mat Min Exi Min Mat Fac Was Fac Hostile Shots Fired 318 | . 21 . 108 . . 45 69 38 13 24 Missed 89 | . 8 . 37 . . 14 14 12 . 4 Hits 229 | . 13 . 71 . . 31 55 26 13 20 Melee 23 | . . . . . . 10 . . 13 . Projectile 206 | . 13 . 71 . . 21 55 26 . 20 Critical Strikes 11 | . 1 . 3 . . 2 . . 5 . Actively Blocked 4 | . . . 2 . . . . . 2 . Damage Taken 4041 | . 151 . 896 . . 655 878 553 613 295 Core 472 | . 57 . 151 . . 45 73 15 90 41 Absorbed by Shields . | . . . . . . . . . . . Redirected to Shielding 444 | . . . 195 . . 47 19 10 173 . Ignored by Resistances 60 | . . . . . . 16 44 . . . Core Remaining (%) 78 | 100 . 77 . . . 51 86 . . . Volleys Fired 218 | 23 19 . 44 2 . 17 65 31 17 . Largest 4 | 1 2 . 2 2 . 2 1 4 4 . Hottest 90 | 20 50 . 90 90 . 90 60 80 80 . Shots Fired 305 | 23 21 . 70 4 . 29 65 39 54 . Gun 281 | 23 19 . 55 4 . 22 65 39 54 . Cannon . | . . . . . . . . . . . Launcher 24 | . 2 . 15 . . 7 . . . . Special . | . . . . . . . . . . . Kinetic 204 | 23 19 . 4 . . . 65 39 54 . Thermal . | . . . . . . . . . . . Explosive 24 | . 2 . 15 . . 7 . . . . Electromagnetic 77 | . . . 51 4 . 22 . . . . Robot Hit Streak 15 | 5 6 . 7 8 . 9 9 6 15 . Robot Miss Streak 8 | 3 8 . 3 . . 2 4 5 5 . Penetration Max . | . . . . . . . . . . . Secondary Targets 1 | . . . . . . . . . 1 . Max Gunslinging Chain 1 | . . . . . . . . . 1 . Shots Hit Robots 234 | 13 9 . 47 4 . 23 63 32 42 1 Core Hits 162 | 6 4 . 56 1 . 8 55 28 4 . Critical Kills . | . . . . . . . . . . . Critical Parts Destroyed . | . . . . . . . . . . . Critical Strikes 1 | . . . 1 . . . . . . . Corrupt 1 | . . . 1 . . . . . . . Melee Attacks 3 | . . . . . . . . . . 3 Impact . | . . . . . . . . . . . Slashing 3 | . . . . . . . . . . 3 Piercing . | . . . . . . . . . . . Sneak Attacks 1 | . . . . . . . . . . 1 Combat Hostiles . | . . . . . . . . . . . Follow-up Attacks . | . . . . . . . . . . . Damage Inflicted 9238 | 113 175 . 1980 60 . 687 3555 1600 968 100 Guns 6919 | 113 74 . 554 60 . 237 3555 1358 968 . Cannons . | . . . . . . . . . . . Explosions 2211 | . 101 . 1426 . . 442 . 242 . . Melee 100 | . . . . . . . . . . 100 Ramming 8 | . . . . . . 8 . . . . Kinetic 6096 | 113 74 . 28 . . . 3555 1358 968 . Thermal 94 | . . . . . . 94 . . . . Explosive 2117 | . 101 . 1426 . . 348 . 242 . . Electromagnetic 823 | . . . 526 60 . 237 . . . . Impact . | . . . . . . . . . . . Slashing 100 | . . . . . . . . . . 100 Piercing . | . . . . . . . . . . . Highest Corruption 2 | . . . . . . . 1 2 1 1 Average Corruption 1 | . . . . . . . 1 1 1 1 Corruption Purged 5 | . . . . . . . . 5 . . Corruption Blocked . | . . . . . . . . . . . Effects 10 | . . . . . . . 3 3 2 2 Message Errors 2 | . . . . . . . . 1 . 1 Matter Fused 3 | . . . . . . . 3 . . . Heat Flow Errors 2 | . . . . . . . . . 2 . Data Loss (minor) 2 | . . . . . . . . 1 . 1 Weapon Failures 1 | . . . . . . . . 1 . . Overload Shots . | . . . . . . . . . . . Overflow Damage 156 | . . . 89 . . 2 . . . 65 Projectiles . | . . . . . . . . . . . Explosions 91 | . . . 89 . . 2 . . . . Melee 65 | . . . . . . . . . . 65 Knockbacks . | . . . . . . . . . . . Impact . | . . . . . . . . . . . Kinetic . | . . . . . . . . . . . Secondary . | . . . . . . . . . . . Self-Inflicted Damage 150 | . 4 . 23 . . 38 . 85 . . Shots 5 | . 1 . 2 . . 1 . 1 . . Rammed 4 | . . . . 1 . 3 . . . . Targets Rammed 6 | . . . . 1 . 5 . . . . Kicked . | . . . . . . . . . . . Crushed 2 | . . . . . . 2 . . . . Highest Temperature 317 | . 36 . 317 90 . 277 273 212 249 . Average Temperature 89 | . 8 . 91 46 . 144 81 72 114 . Received Heat Transfer 729 | . 60 . 240 . . 72 297 60 . . Effects 1 | . . . 1 . . . . . . . Shutdowns 1 | . . . 1 . . . . . . . Siege Activations . | . . . . . . . . . . . Martial Activations . | . . . . . . . . . . . Shielding Activations . | . . . . . . . . . . . Robots Disrupted . | . . . . . . . . . . . Combat Hostiles . | . . . . . . . . . . . Robots Corrupted 1 | . . . 1 . . . . . . . Combat Hostiles 1 | . . . 1 . . . . . . . Parts Fried 7 | . . . 6 . . 1 . . . . Impact Corruptions . | . . . . . . . . . . . Robots Melted . | . . . . . . . . . . . Combat Hostiles . | . . . . . . . . . . . Parts Melted 3 | . . . 1 . . . 2 . . . Heat Transferred 100 | . . . . . . 100 . . . . Parts Sabotaged . | . . . . . . . . . . . Parts Stolen . | . . . . . . . . . . . Parts Stripped . | . . . . . . . . . . . Power Chain Reactions 1 | . . . . . . 1 . . . . Alert | -11 -10 -10 -9 -9 -9 -8 -8 -7 -7 -7 ------- Run | Yrd Mat Min Mat Min Exi Min Mat Fac Was Fac Maximum Alert Level 2 | . . . 2 1 . . 2 2 . . Low Security (%) 60 | 100 100 100 41 98 . 100 17 75 100 100 Level 1 22 | . . . 15 1 . . 64 5 . . Level 2 16 | . . . 43 . . . 18 19 . . Level 3 . | . . . . . . . . . . . Level 4 . | . . . . . . . . . . . Level 5 . | . . . . . . . . . . . High Security . | . . . . . . . . . . . Max Security . | . . . . . . . . . . . Peak Influence 568 | 5 67 19 568 200 . 48 471 427 142 . Initial 201 | . . 19 . 200 . . . 201 142 . Average 157 | . 17 1 275 36 . 7 277 124 61 . Influence Increases 3042 | 15 185 . 964 55 . 128 1050 645 . . Destroy 0b10 Robot/C 1740 | . 100 . 640 40 . 80 620 260 . . Destroy 0b10 Robot/NC 195 | 15 5 . 35 . . 5 105 30 . . Destroy Leader 436 | . 22 . 138 10 . 20 152 94 . . Allied During Kill 101 | . 12 . 42 5 . . 42 . . . Successful Hack 67 | . 34 . 24 . . . 3 6 . . Disable Machine 90 | . . . . . . . 45 45 . . Anti-Garrison Action 150 | . . . . . . . . 150 . . Destroy Structure 233 | . 12 . 85 . . 23 53 60 . . Lose Combat Pursuer 30 | . . . . . . . 30 . . . Influence Decreases 3042 | 15 135 50 450 569 . 128 606 681 408 . Entered New Map 854 | . . 31 . 314 . . . 243 266 . Time Decay 1916 | 15 135 19 380 255 . 78 546 438 50 . Lost Part 212 | . . . 50 . . 50 20 . 92 . Lost Ally 60 | . . . 20 . . . 40 . . . Squads Dispatched 21 | . . . 2 . . . 7 11 . 1 Investigation 2 | . . . . . . . . 2 . . Extermination 6 | . . . . . . . . 6 . . Reinforcement 5 | . . . 1 . . . 2 1 . 1 Assault 4 | . . . 1 . . . 1 2 . . Garrison 4 | . . . . . . . 4 . . . Intercept . | . . . . . . . . . . . Searches Triggered . | . . . . . . . . . . . Construction Impeded 2 | . . . . . . . 1 1 . . Haulers Reinforced . | . . . . . . . . . . . Active Scanning Responses . | . . . . . . . . . . . Cargo Convoy Interrupts . | . . . . . . . . . . . Stealth | -11 -10 -10 -9 -9 -9 -8 -8 -7 -7 -7 --------- Run | Yrd Mat Min Mat Min Exi Min Mat Fac Was Fac Distress Signals 6 | . . . 3 . . . 3 . . . Communications Jammed . | . . . . . . . . . . . Distress Signals . | . . . . . . . . . . . Times Spotted 126 | . 12 . 40 2 . 4 41 16 5 6 Peak Tracking Total 14 | . 4 . 14 1 . 3 5 3 5 3 Tactical Retreats 2 | . . . . . . . 2 . . . Traps | -11 -10 -10 -9 -9 -9 -8 -8 -7 -7 -7 ------- Run | Yrd Mat Min Mat Min Exi Min Mat Fac Was Fac Traps Triggered 5 | . . . . . . . 1 4 . . Indirectly . | . . . . . . . . . . . Trap Hack Attempts . | . . . . . . . . . . . Triggered . | . . . . . . . . . . . Disarmed . | . . . . . . . . . . . Reprogrammed . | . . . . . . . . . . . Reused . | . . . . . . . . . . . Traps Extracted . | . . . . . . . . . . . Installed . | . . . . . . . . . . . Triggered . | . . . . . . . . . . . Machines | -11 -10 -10 -9 -9 -9 -8 -8 -7 -7 -7 ---------- Run | Yrd Mat Min Mat Min Exi Min Mat Fac Was Fac Machines Disabled 7 | . . . . . . . 3 4 . . Max in Single Turn 2 | . . . . . . . 1 2 . . Garrison Access 1 | . . . . . . . . 1 . . Machines Repaired . | . . . . . . . . . . . Machines Dismantled . | . . . . . . . . . . . Machines Sabotaged . | . . . . . . . . . . . Overloaded Fab Kills . | . . . . . . . . . . . Hacking | -11 -10 -10 -9 -9 -9 -8 -8 -7 -7 -7 --------- Run | Yrd Mat Min Mat Min Exi Min Mat Fac Was Fac Machines Accessed 17 | . 4 1 4 . 1 . 2 5 . . Terminals 10 | . 4 . 3 . . . 2 1 . . Fabricators 1 | . . . . . . . . 1 . . Repair Stations . | . . . . . . . . . . . Recycling Units 3 | . . . 1 . . . . 2 . . Scanalyzers 1 | . . . . . . . . 1 . . Garrison Access . | . . . . . . . . . . . Total Hacks 49 | . 16 1 13 . 1 . 6 12 . . Successful 29 | . 9 1 8 . 1 . 4 6 . . Failed 20 | . 7 . 5 . . . 2 6 . . Catastrophic 3 | . 1 . 1 . . . . 1 . . Database Lockouts . | . . . . . . . . . . . Manual 36 | . 15 . 11 . 1 . 4 5 . . Terminals 34 | . 16 . 11 . . . 6 1 . . Fabricators 2 | . . . . . . . . 2 . . Repair Stations . | . . . . . . . . . . . Recycling Units 8 | . . . 2 . . . . 6 . . Scanalyzers 3 | . . . . . . . . 3 . . Garrison Access . | . . . . . . . . . . . Terminal Hacks 13 | . 5 1 3 . 1 . 2 1 . . Record 1 | . 1 . . . . . . . . . Part Schematic 1 | . 1 . . . . . . . . . Prototype ID Bank 1 | . . . 1 . . . . . . . Open Door 1 | . . 1 . . . . . . . . Open DSF 1 | . . . . . . . . 1 . . Branch Access Points 3 | . 1 . 1 . . . 1 . . . Emergency Access Points 2 | . 1 . 1 . . . . . . . Terminal Index 2 | . 1 . . . . . 1 . . . Proto ID Catalog 1 | . . . . . 1 . . . . . Fabricator Hacks 2 | . . . . . . . . 2 . . Load Schematic 1 | . . . . . . . . 1 . . Build 1 | . . . . . . . . 1 . . Repair Station Hacks . | . . . . . . . . . . . Recycling Unit Hacks . | . . . . . . . . . . . Scanalyzer 1 | . . . . . . . . 1 . . Insert Component 1 | . . . . . . . . 1 . . Garrison Access Hacks . | . . . . . . . . . . . Unauthorized Hacks 13 | . 4 . 5 . . . 2 2 . . Terminals 9 | . 4 . 3 . . . 2 . . . Botnet 9 | . 4 . 3 . . . 2 . . . Fabricators . | . . . . . . . . . . . Repair Stations . | . . . . . . . . . . . Recycling Units 4 | . . . 2 . . . . 2 . . Reject 2 | . . . 1 . . . . 1 . . Mask 2 | . . . 1 . . . . 1 . . Scanalyzers . | . . . . . . . . . . . Garrison Access . | . . . . . . . . . . . Data Cores Recovered . | . . . . . . . . . . . Used . | . . . . . . . . . . . Hacking Detections 15 | . 4 . 4 . . . 2 5 . . Full Trace Events 2 | . . . . . . . . 2 . . Feedback Events . | . . . . . . . . . . . Feedback Blocked . | . . . . . . . . . . . Robot Schematics Acquired . | . . . . . . . . . . . Robots Built . | . . . . . . . . . . . Authchips . | . . . . . . . . . . . Time . | . . . . . . . . . . . Total Robot Build Rating . | . . . . . . . . . . . Part Schematics Acquired 1 | . 1 . . . . . . . . . Parts Built 2 | . . . . . . . . 2 . . Authchips . | . . . . . . . . . . . Time 51 | . . . . . . . . 51 . . Total Part Build Rating 2 | . . . . . . . . 2 . . Part Studies Acquired . | . . . . . . . . . . . Parts Repaired . | . . . . . . . . . . . Time . | . . . . . . . . . . . Parts Recycled . | . . . . . . . . . . . Recycled Matter . | . . . . . . . . . . . Retrieved Matter . | . . . . . . . . . . . Retrieved Components . | . . . . . . . . . . . Parts Scanalyzed 1 | . . . . . . . . 1 . . Part Schematics Acquired . | . . . . . . . . . . . Parts Damaged . | . . . . . . . . . . . Bothacking | -11 -10 -10 -9 -9 -9 -8 -8 -7 -7 -7 ------------ Run | Yrd Mat Min Mat Min Exi Min Mat Fac Was Fac Used RIF Installer . | . . . . . . . . . . . Robots Hacked . | . . . . . . . . . . . Non-combat . | . . . . . . . . . . . Combat . | . . . . . . . . . . . Robot Hacks Applied . | . . . . . . . . . . . Relay Couplers Released 2 | . . . . . . . . 2 . . Machine Destruction 2 | . . . . . . . . 2 . . Fabnet Peak Effective % . | . . . . . . . . . . . Robots Rewired . | . . . . . . . . . . . Allies Hacked . | . . . . . . . . . . . Hacks Repelled . | . . . . . . . . . . . Allies | -11 -10 -10 -9 -9 -9 -8 -8 -7 -7 -7 -------- Run | Yrd Mat Min Mat Min Exi Min Mat Fac Was Fac Total Allies 5 | 1 . . 2 . . . 2 . . . Largest Group 1 | 1 1 1 1 1 1 1 1 . . . Highest-Rated Group 33 | 30 30 30 30 29 29 29 33 . . . Highest-Rated Ally 33 | 30 30 30 30 29 29 29 33 . . . Total Orders 1 | . . . 1 . . . . . . . EXPLORE 1 | . . . 1 . . . . . . . Ally Attacks 100 | . 16 . 21 4 . 6 53 . . . Total Damage 1218 | . 238 . 225 44 . 44 667 . . . Kills 20 | . 5 . 4 2 . . 9 . . . Allies Corrupted . | . . . . . . . . . . . Allies Melted . | . . . . . . . . . . . Intel | -11 -10 -10 -9 -9 -9 -8 -8 -7 -7 -7 ------- Run | Yrd Mat Min Mat Min Exi Min Mat Fac Was Fac Active Infowar (turns) 5821 | 34 440 294 223 809 328 36 840 2772 45 . Optics 905 | . . . . . . . . 905 . . Sensors 5094 | . . 248 218 808 328 34 837 2579 42 . Terrain 3279 | 25 440 46 205 807 327 36 528 821 44 . Seismic 88 | 9 . . 79 . . . . . . . Machine Analysis 795 | . . . . . . . . 795 . . Jamming 785 | . . . . . . . . 740 45 . Robot Analysis Total . | . . . . . . . . . . . Derelict Logs Recovered 2 | . . 1 . 1 . . . . . . Drone Launches 16 | . . . 16 . . . . . . . Drone Recoveries . | . . . . . . . . . . . Exploration | -11 -10 -10 -9 -9 -9 -8 -8 -7 -7 -7 ------------- Run | Yrd Mat Min Mat Min Exi Min Mat Fac Was Fac Turns Passed 12208 | 144 440 294 1036 1288 1510 459 3251 3467 182 137 Spaces Moved 3756 | 79 241 228 357 393 424 67 541 1267 102 57 Core 5 | 3 . . . . . . . . 2 . Treads 1948 | 2 97 3 157 393 424 67 541 264 . . Legs . | . . . . . . . . . . . Wheels 1803 | 74 144 225 200 . . . . 1003 100 57 Hover . | . . . . . . . . . . . Flight . | . . . . . . . . . . . Fastest Speed 50 | 50 100 115 145 320 320 560 472 205 50 100 Average Speed 294 | 99 159 125 236 320 353 560 554 247 121 100 Slowest Speed 800 | 160 240 240 480 320 560 560 560 800 205 100 Overloaded Moves . | . . . . . . . . . . . Propulsion Burnouts . | . . . . . . . . . . . Robots Hopped . | . . . . . . . . . . . Potential Cave-ins . | . . . . . . . . . . . Cave-ins Triggered . | . . . . . . . . . . . Exploration Rate (%) 38 | 4 40 53 34 72 61 21 39 22 70 2 Regions Visited 10 Branch Regions 4 Pre-discovered Areas 1 | . . . . 1 . . . . . . Known Exits Taken 3 | . 1 . 1 . . . 1 . . . Unknown Exits Taken 5 | 1 . 1 . 1 1 1 . . . . Scrap Searched 3 | . . 2 . 1 . . . . . . Spaces Dug . | . . . . . . . . . . . Terrain Destroyed 241 | . 14 . 81 . . 35 48 63 . . Melee . | . . . . . . . . . . . Projectile 58 | . . . . . . . 48 10 . . AOE 183 | . 14 . 81 . . 35 . 53 . . Terrain Rammed . | . . . . . . . . . . . Walls Destroyed . | . . . . . . . . . . . Machines Disabled . | . . . . . . . . . . . Actions | -11 -10 -10 -9 -9 -9 -8 -8 -7 -7 -7 --------- Run | Yrd Mat Min Mat Min Exi Min Mat Fac Was Fac Total 4737 | 124 280 240 479 415 444 101 792 1589 144 129 Wait 311 | . 1 . 10 6 . 1 82 152 . 59 Move 3747 | 78 240 227 356 392 423 66 540 1267 101 57 Hop . | . . . . . . . . . . . Pick Up 164 | 11 12 5 26 7 8 3 39 47 1 5 Fast Attach 23 | 6 1 1 1 . 1 . 2 4 3 4 Attach 36 | . . . 8 . 1 5 4 4 13 1 Detach 5 | . . . . . 2 . 3 . . . Swap 120 | 1 2 1 19 7 1 4 32 44 9 . Drop 104 | 5 5 6 15 . 8 . 25 40 . . Fire 218 | 23 19 . 44 2 . 17 65 31 17 . Melee 3 | . . . . . . . . . . 3 Ram . | . . . . . . . . . . . Kick . | . . . . . . . . . . . Crush 6 | . . . . 1 . 5 . . . . Escape Stasis . | . . . . . . . . . . . Rewire . | . . . . . . . . . . . Trap . | . . . . . . . . . . . Miscellaneous . | . . . . . . . . . . . Route ------- -11/Scrapyard -10/Materials (discovered 2 exits: *Min x2) -10/Mines -9/Materials (discovered 4 exits: *Min x2 / *Sto x2) -9/Mines (discovered 3 exits: *Mat x2 / *Exi) -9/Exiles -8/Mines -8/Materials -7/Factory -7/Waste -7/Factory History --------- Turn | Location | Event 33 | -11/Scrapyard | Discovered new exit (range 15) 62 | -11/Scrapyard | Botcube activated 74 | -11/Scrapyard | Botcube completed mutation into legged form, armed with 2 guns. 145 | -11/Scrapyard | Entered Materials 145 | -10/Materials | Accompanied by 1 ally 163 | -10/Materials | Identified exit to Mines 311 | -10/Materials | Build established: Mutant 585 | -10/Materials | Entered Mines 585 | -10/Mines | Accompanied by 1 ally 611 | -10/Mines | Learned 2 Materials zone layouts 628 | -10/Mines | Found a damaged Exp. Sensor Array with a note attached 631 | -10/Mines | Found Prototype Device 631 | -10/Mines | Identified Exp. Sensor Array 717 | -10/Mines | Found the Drone Emporium 724 | -10/Mines | Found Prototype Device 851 | -10/Mines | Discovered new exit (range 5) 879 | -10/Mines | Entered Materials 879 | -9/Materials | Accompanied by 1 ally 879 | -9/Materials | Evolved 2 slots: Utility x2 879 | -9/Materials | Identified Decoy Drone Bay 880 | -9/Materials | Identified exit to Storage 927 | -9/Materials | Discovered exit to Storage (range 41) 956 | -9/Materials | Lost 10 allies 981 | -9/Materials | Identified exit to Mines 1304 | -9/Materials | Destroyed Mutated Botcube 1336 | -9/Materials | Botcube activated 1341 | -9/Materials | Destroyed 11 combat bots 1346 | -9/Materials | Botcube completed mutation into wheeled form, armed with 1 gun. 1679 | -9/Materials | First assault squad dispatched 1715 | -9/Materials | Found Botcube 1784 | -9/Materials | Botcube activated 1794 | -9/Materials | Botcube completed mutation into legged form, armed with 1 gun. 1915 | -9/Materials | Entered Mines 1915 | -9/Mines | Accompanied by 1 ally 2224 | -9/Mines | Build established: Scavenger-Skirmisher 2558 | -9/Mines | Discovered new exit (range 11) 2579 | -9/Mines | Learned location of Storage (-9) 2656 | -9/Mines | Found a hidden stash of uninstalled traps 2937 | -9/Mines | Discovered new exit (range 15) 3033 | -9/Mines | Build established: Mutant 3184 | -9/Mines | Deemed a non-threat by the Exiles lab entrance 3184 | -9/Mines | Discovered new exit (range 5) 3203 | -9/Mines | Entered Exiles 3203 | -9/Exiles | Accompanied by 1 ally 3280 | -9/Exiles | Met 8R-AWN 3328 | -9/Exiles | Met EX-HEX 3434 | -9/Exiles | Met EX-BIN 3472 | -9/Exiles | Aligned with FarCom system 3475 | -9/Exiles | Given EX-Vault access code 3549 | -9/Exiles | Opened EX-Vault 3698 | -9/Exiles | Warned to stay clear of 0b10 Research branches 3788 | -9/Exiles | Met EX-DEC 4130 | -9/Exiles | Found XL Autogun Array 4635 | -9/Exiles | Discovered new exit (range 15) 4679 | -9/Exiles | Build established: Hauler-Mutant 4713 | -9/Exiles | Left Exiles lab with XL Autogun Array 4713 | -9/Exiles | Entered Mines 4713 | -8/Mines | Accompanied by 1 ally 4819 | -8/Mines | Found Botcube 4825 | -8/Mines | Lost 5 parts (2p2u1w) 5144 | -8/Mines | Discovered new exit (range 5) 5172 | -8/Mines | Entered Materials 5172 | -8/Materials | Evolved 2 slots: Weapon x2 5505 | -8/Materials | Garrison activated, responded to threat 5577 | -8/Materials | Botcube activated 5589 | -8/Materials | Botcube completed mutation into wheeled form, armed with 1 gun. 5653 | -8/Materials | Garrison activated, responded to threat 5810 | -8/Materials | Build established: Hauler-Tank 5902 | -8/Materials | Found Botcube 5918 | -8/Materials | Botcube activated 5928 | -8/Materials | Botcube completed mutation into legged form, armed with 2 guns. 6466 | -8/Materials | Discovered new exit (range 15) 7160 | -8/Materials | Identified exit to Factory 8077 | -8/Materials | Build established: Hauler-Skirmisher 8372 | -8/Materials | First assault squad dispatched 8423 | -8/Materials | Entered Factory 8423 | -7/Factory | Evolved 2 slots: Propulsion x1, Utility x1 10866 | -7/Factory | Fabricated Tractor Beam? 11890 | -7/Factory | Sucked down chute 11890 | -7/Factory | Entered Waste 11908 | -7/Waste | Spotted C-40 Crusher 11933 | -7/Waste | Spotted C-40 Crusher 11950 | -7/Waste | Spotted C-40 Crusher 11957 | -7/Waste | Crushed by Compactor (0 parts destroyed, 1 dropped) 11959 | -7/Waste | Destroyed C-40 Crusher 11963 | -7/Waste | Crushed by Compactor (0 parts destroyed, 1 dropped) 11966 | -7/Waste | Crushed by Compactor (1 part destroyed, 1 dropped) 11969 | -7/Waste | Crushed by Compactor (0 parts destroyed, 2 dropped) 11975 | -7/Waste | Crushed by Compactor (1 part destroyed, 2 dropped) 11975 | -7/Waste | Spotted C-40 Crusher 11978 | -7/Waste | Crushed by Compactor (1 part destroyed, 1 dropped) 11981 | -7/Waste | Crushed by Compactor (1 part destroyed, 1 dropped) 11984 | -7/Waste | Crushed by Compactor (0 parts destroyed, 1 dropped) 11985 | -7/Waste | Crushed by Compactor (1 part destroyed, 1 dropped) 11987 | -7/Waste | Crushed by Compactor (0 parts destroyed, 1 dropped) 11991 | -7/Waste | Crushed by Compactor (1 part destroyed, 1 dropped) 12014 | -7/Waste | Spotted C-40 Crusher 12015 | -7/Waste | Spotted C-40 Crusher 12022 | -7/Waste | Lost 10 parts (1p1n6u2w) 12062 | -7/Waste | Discovered new exit (range 11) 12072 | -7/Waste | Entered Factory 12209 | -7/Factory | Self-destructed Last Messages --------------- 12035_ Acquired Falx. 12062_ EXIT=FOUND LOCATION=UNKNOWN GOAL=ESCAPE 12072_ Receiving FarCom transmissions... 12078_ Acquired Com. Matter Pod. 12084_ Acquired Targeting Computer. 12092_ Acquired Target Analyzer. 12129_ System corrupted: Component data lost. 12157_ Sneak attack on O-24 Administrator. 12157_ Destroyed Imp. Hover Unit. 12157_ Destroyed Lgt. Deuterium Engine. 12158_ ALERT: All DSF locations entering lockdown mode. 12158_ O-24 Administrator: "IFF HANDSHAKE FAILED. SECURING TERMINAL." 12164_ V:MILQCYXJS>8MDOZQANV>V9SQ1NS< Y/WR38RIL 12174_ ALERT: Hostiles spotted, dispatching reinforcements to Terminal F009. 12199_ Targeting Computer destroyed. 12202_ Falx destroyed. 12205_ Acquired Shield Generator. Map ----- +----------------------------------------------------+ | | | | | | | | | | | | | | | ?????????????????????????????????????????????????? | | ?????????????????????????????????????????????????? | | ?????????????????????????????????????????????????? | | ?????????????????????????????????????????????????? | | ?????????????????????????????????????????????????? | | ?????????????????????????????????????????????????? | | ?????????????????????????????????????????????????? | | ??##############?????????????????????????????????? | | ??# ###???####????????????????????????? | | ??# ## #????????????????????????? | | ??# ## #????????????????????????? | | ??# """ """ ## #????????????????????????? | | ??# """ """ ## """ #????????????????????????? | | ??# """ """ ## """ #????????????????????????? | | ??# ## """ #??????????????g?????????? | | ??# """ """ ## #????????????????????????? | | ??# """ """ ## " " #?????????? g!! ????????? | | ??# """ """ ## "T"o ##### ! !! "????????? | | ??# ## """ ss@ l "????????? | | ??# ## s# ????????? | | #########+#############/# ????????? | | ?????????? | | ?????????? | | ^ ??????????? | | """??????????? | | """????????????? | | ###+######################### """????????????? | | #?????????????????? ^ ?????????????? | | #?????????????????? ?????????????? | | #??????????????????? """????????????? | | #??????????????????? "??????????????? | | #???????????????????? ??????????????? | | #??????????????????????????????????????? | | #??????????????????????????????????????? | | #??????????????????????????????????????? | | #??????????????????????????????????????? | | #??????????????????????????????????????? | | #??????????????????????????????????????? | | #??????????????????????????????????????? | | ###########??????????????????????????????????????? | | ?????????????????????????????????????????????????? | | ?????????????????????????????????????????????????? | | ?????????????????????????????????????????????????? | +----------------------------------------------------+ Best States ------------- Heat Dissipation 48 Energy Generation 18 Energy Capacity 250 Matter Stores 300 Matter Capacity 300 Sight Range 18 Robot Scan Range 20 Terrain Scan Range 16 Terrain Scan Density 85 Jamming Range 12 Additional Mass Support 9 Armor Coverage 375 Resistance: KI 20 Resistance: TH 10 Propulsion Shielding 66 Evasion (%) 50 Targeting Accuracy 15 Target Analysis 7 Recoil Reduction 4 Kinecelleration 30 Offensive Hacking 20 Item Schematics ----------------- Tractor Beam | -10/Materials | Hacked Robot Schematics ------------------ None Fabricated ------------ Tractor Beam | x2 | -7/Factory Repaired ---------- Nothing Studied --------- None Alien Tech Used ----------------- None Achievements -------------- None Challenges ------------ None Game ------ Seed LatentHardcellSabre Manual? 0 Play Time 01:31:06 Cumulative 135.3 hours Start 2026.03.13 @ 17:16:27 End 2026.03.14 @ 15:30:29 Sessions 5 Manual Loads 0 Difficulty Rogue Special Mode None Game No. 160 Rogue 160 Adventurer 0 Explorer 0 Win Type - Total 1 Types 1/0/0/0/0/0/0/0/0/0 Lore% 27 Gallery% 47 Achievement% 32 Wizard Run 0 Options --------- Layout 0 ASCII 0 Keyboard 0 Movement Mouse Keybinds 0 Fullscreen 1 Font 24/Smallcaps Map View 76x50 Zoom Use 0% Tactical HUD 1 Map Filters NONE Filters NONE Steam 1 RUN: 795b6ea0-0cd6-448d-aaad-60ed22245e5d